bitfinex/quotes_ETHUSD_20251021
["timestamp","ask_amount","ask_price","bid_price","bid_amount"]
[1761069847681,0.3486,4024.7,4024.0,0.124]
[1761069847978,0.3486,4024.7,4023.5,2.48535313]
[1761069847979,0.124,4024.9,4024.6,2.48467287]
[1761069848282,0.124,4024.9,4024.4,2.48483057]
[1761069848654,0.5493,4024.9,4024.2,0.124]
[1761069848876,0.124,4024.9,4024.2,0.124]
[1761069849582,0.124,4024.9,4024.5,2.48477071]
[1761069849769,0.124,4024.9,4024.3,2.48489483]
[1761069849971,0.124,4024.9,4024.6,2.48467804]
[1761069850348,0.124,4024.9,4024.8,2.4845955]
[1761069850555,0.2246,4025.8,4024.8,0.49692735]
[1761069850753,0.001,4026.0,4025.4,2.48422517]
[1761069851072,0.2256,4025.9,4025.4,2.60822517]
[1761069851806,0.001,4025.9,4025.4,3.08406742]
[1761069852382,0.001,4025.9,4025.4,3.05922517]
[1761069852578,0.001,4025.9,4025.4,5.52766006]
[1761069853090,0.001,4025.9,4025.4,5.07666006]
[1761069853294,0.001,4025.9,4025.4,3.05922517]
[1761069853450,0.001,4025.9,4025.4,6.31422517]
[1761069854185,0.001,4025.9,4025.4,5.86322517]
[1761069854354,0.001,4025.9,4025.4,2.60822517]
[1761069854555,0.1853,4025.9,4025.4,2.60822517]
[1761069855400,0.001,4025.9,4025.4,3.89397817]
[1761069855587,0.001,4025.9,4025.4,3.91882042]
[1761069855799,0.001,4025.9,4025.4,5.47402042]
[1761069856106,0.001,4025.9,4025.4,5.95605817]
[1761069856663,0.001,4026.4,4026.3,2.48366987]
[1761069856892,0.001,4026.4,4026.3,7.56707355]
[1761069857093,0.001,4026.4,4026.3,8.50011686]
[1761069858479,0.001,4026.4,4026.3,7.54223686]
[1761069858892,0.001,4026.4,4026.3,7.99463686]
[1761069859208,0.001,4027.1,4026.6,2.99036482]
[1761069859515,0.001,4027.1,4026.6,31.97950048]
[1761069859711,0.001,4027.1,4026.6,32.40706564]
[1761069860130,0.001,4027.2,4026.6,32.40706564]
[1761069860131,1e-08,4027.2,4027.1,12.46855447]
[1761069860417,0.001,4027.6,4027.5,16.62077585]
[1761069860603,0.2156,4029.8,4027.7,0.50688]
[1761069860803,0.2156,4029.8,4028.5,2.06208]
[1761069861009,0.4567,4029.7,4029.4,2.48172252]
[1761069861317,0.4567,4029.7,4028.4,22.80724407]
[1761069861318,0.4567,4029.7,4028.4,2.4823744]
[1761069861481,2.93833582,4029.7,4028.8,2.48210379]
[1761069861678,2.48171811,4029.5,4028.6,1.5552]
[1761069861884,0.2156,4028.7,4028.4,2.48235394]
[1761069862080,0.2156,4028.7,4028.2,2.48248917]
[1761069862318,0.6723,4028.7,4028.2,2.48248917]
[1761069862518,0.6723,4028.7,4028.5,2.4822997]
[1761069862814,0.6723,4028.7,4028.4,2.48235299]
[1761069862990,0.2156,4028.7,4028.0,2.48260344]
[1761069863195,0.4567,4028.6,4028.2,2.48243949]
[1761069863394,0.2156,4028.7,4027.9,1.5552]
[1761069863597,3.254,4029.6,4028.2,2.48249838]
[1761069863792,0.4592,4029.5,4028.3,0.02482436]
[1761069863992,0.4592,4029.5,4028.9,2.48201799]
[1761069864194,0.4592,4029.5,4028.8,2.48212831]
[1761069864512,0.4592,4029.5,4029.0,2.48200403]
[1761069865438,0.2246,4030.0,4028.3,0.63877244]
[1761069865439,0.6827,4030.0,4028.9,0.161]
[1761069865603,0.2246,4030.0,4029.5,2.4816526]
[1761069865938,0.2246,4030.0,4028.9,0.161]
[1761069865939,0.6803,4030.0,4028.9,0.161]
[1761069866084,0.4557,4029.9,4029.3,2.48176712]
[1761069866286,0.4557,4029.9,4029.3,2.48176466]
[1761069866501,2.93715153,4029.9,4028.8,5.7351277]
[1761069866705,0.125,4029.7,4029.1,2.4819184]
[1761069866987,0.125,4029.7,4028.4,22.80724407]
[1761069866988,0.001,4029.7,4028.9,2.48201413]
[1761069867223,0.001,4029.7,4029.1,0.124]
[1761069867420,0.001,4029.7,4029.6,2.48163589]
[1761069868788,0.457,4029.7,4029.5,0.124]
[1761069868988,0.457,4029.7,4029.1,3.252]
[1761069869321,0.457,4029.7,4029.2,2.48187363]
[1761069869683,0.457,4029.7,4028.9,2.48204318]
[1761069869921,0.457,4029.7,4029.1,2.48189256]
[1761069870328,0.457,4029.7,4028.9,2.48204318]
[1761069870510,0.457,4029.7,4028.9,2.48201706]
[1761069870511,2.93858206,4029.7,4028.9,2.48201706]
[1761069870690,0.457,4029.7,4028.6,1.5552]
[1761069870898,0.457,4029.7,4029.3,2.48181715]
[1761069870899,0.456,4029.6,4029.3,2.48181715]
[1761069871392,0.456,4029.6,4028.8,1.5552]
[1761069871595,0.218,4028.7,4028.6,2.48225189]
[1761069871795,0.218,4028.7,4028.3,2.48238749]
[1761069872130,0.4536,4028.6,4027.6,0.002]
[1761069872309,0.218,4027.7,4027.6,2.4848682]
[1761069872527,0.218,4027.7,4027.6,0.002]
[1761069872725,0.4513,4028.0,4027.6,0.002]
[1761069872948,2.93393723,4028.0,4027.6,0.002]
[1761069873258,0.4513,4028.0,4027.6,0.002]
[1761069873553,2.48280186,4027.8,4027.6,0.002]
[1761069873762,2.48280656,4027.7,4027.6,0.002]
[1761069873909,2.93410656,4027.7,4027.6,0.002]
[1761069874343,3.252,4027.8,4027.6,0.002]
[1761069874530,3.252,4027.8,4027.7,2.48280656]
[1761069874723,3.252,4027.8,4027.6,0.002]
[1761069874925,3.252,4027.8,4027.7,2.48280656]
[1761069875119,1.677,4029.0,4027.7,2.48280656]
[1761069875447,1.677,4029.0,4027.9,2.48263861]
[1761069875448,3.4813,4028.6,4027.9,2.48263861]
[1761069875744,0.2293,4028.5,4027.8,2.48269805]
[1761069876314,0.2293,4028.5,4027.9,2.48267667]
[1761069876514,0.2293,4028.5,4027.8,2.48273196]
[1761069876839,0.2243,4027.7,4027.6,0.002]
[1761069877209,0.2243,4027.7,4027.6,2.48484571]
[1761069877614,0.4536,4027.7,4027.6,0.002]
[1761069877815,3.252,4028.6,4027.6,0.002]
[1761069878152,3.252,4028.6,4028.1,2.48255841]
[1761069878350,3.252,4028.6,4028.3,2.4823852]
[1761069878846,0.2293,4028.5,4028.1,2.48255311]
[1761069879043,0.2293,4028.5,4027.8,2.48274383]
[1761069879044,0.3533,4028.5,4028.2,2.48249211]
[1761069879433,0.3533,4028.5,4028.0,2.48262164]
[1761069879615,0.2243,4028.8,4028.5,2.48229915]
[1761069879817,0.4474,4028.8,4028.6,2.4822518]
[1761069880645,0.4474,4028.8,4028.7,2.48219028]
[1761069880646,0.2243,4028.8,4028.7,2.48219028]
[1761069881458,0.4474,4028.8,4028.4,2.48235962]
[1761069881629,0.4474,4028.8,4028.5,2.48230562]
[1761069881830,0.4474,4028.8,4028.6,2.48224596]
[1761069882155,0.2243,4028.8,4027.9,1.5552]
[1761069882322,0.2243,4028.8,4028.5,2.48231102]
[1761069882525,0.2231,4028.7,4028.1,1.5552]
[1761069882730,0.2231,4028.7,4028.6,2.48225189]
[1761069882947,0.2243,4028.8,4028.7,2.48219028]
[1761069883758,0.2243,4028.8,4028.3,2.48237905]
[1761069883965,0.4474,4028.8,4028.5,2.48229981]
[1761069884149,0.2243,4028.8,4028.7,2.48219028]
[1761069884665,0.001,4028.8,4028.7,3.42654002]
[1761069884855,0.001,4028.8,4028.7,3.45136192]
[1761069885057,0.001,4028.8,4028.7,2.97864002]
[1761069885641,0.001,4028.8,4028.7,2.48219028]
[1761069885841,0.2241,4028.8,4028.2,3.251]
[1761069886041,0.2241,4028.8,4028.7,2.48219028]
[1761069886364,0.001,4028.8,4028.7,2.48219028]
[1761069886546,0.2231,4028.7,4027.8,0.002]
[1761069886727,0.2231,4028.7,4028.2,2.48244889]
[1761069887131,0.2231,4028.7,4028.3,2.48242912]
[1761069887560,0.2231,4028.7,4028.2,2.48247405]
[1761069887964,2.70533342,4028.7,4028.0,2.48257328]
[1761069888184,2.48225318,4028.6,4027.8,0.002]
[1761069888346,0.2243,4027.9,4027.8,0.002]
[1761069889135,0.2243,4027.9,4027.8,2.48474492]
[1761069889369,3.252,4028.8,4027.9,2.48264727]
[1761069889580,0.2232,4028.7,4028.2,2.482456]
[1761069889737,0.124,4028.3,4028.2,2.48249838]
[1761069889937,0.2232,4028.7,4028.6,2.48225189]
[1761069890358,3.251,4028.8,4027.9,2.48268328]
[1761069890566,3.251,4028.8,4028.6,2.48220085]
[1761069890750,3.251,4028.8,4028.7,2.48219028]
[1761069891953,3.251,4028.8,4027.9,0.74135833]
[1761069891954,3.4742,4028.8,4028.0,1.5552]
[1761069892159,3.251,4028.8,4028.7,2.48219028]
[1761069893163,3.4742,4028.8,4028.6,2.48223842]
[1761069893472,0.2232,4028.7,4028.6,2.48223842]
[1761069894174,3.251,4028.8,4028.7,2.48219028]
[1761069894980,0.001,4028.8,4028.7,2.48219028]
[1761069898382,0.4461,4028.8,4028.7,2.48219028]
[1761069899387,0.001,4028.8,4028.7,2.48219028]
[1761069899850,0.001,4028.8,4028.3,0.124]
[1761069900251,0.2247,4028.7,4028.6,2.48225189]
[1761069900457,0.001,4028.8,4028.7,2.48219028]
[1761069900791,0.001,4028.8,4028.7,5.1549564]
[1761069901308,0.001,4028.8,4028.7,4.6578345]
[1761069901454,0.001,4028.8,4028.7,5.0061345]
[1761069901655,0.001,4028.8,4028.7,4.5338345]
[1761069901870,0.001,4028.8,4028.7,4.03739028]
[1761069902497,14.49208328,4028.7,4028.4,0.002]
[1761069902811,2.48323814,4027.0,4025.7,1.32075584]
[1761069903102,2.48323814,4027.0,4024.5,0.4723]
[1761069903103,4.54544147,4026.8,4025.2,2.4842964]
[1761069903261,4.54544147,4026.8,4024.7,0.2203]
[1761069903262,4.57353436,4026.8,4025.1,0.2203]
[1761069903462,3.249,4026.8,4025.4,0.4723]
[1761069903707,5.95326147,4026.8,4025.4,0.4723]
[1761069904062,5.95326147,4026.8,4025.7,2.48403856]
[1761069904274,3.4699,4026.8,4025.4,0.4723]
[1761069904475,5.95326147,4026.8,4026.0,2.48379448]
[1761069904665,5.95326147,4026.8,4025.4,0.4723]
[1761069904868,5.95326147,4026.8,4025.1,0.2203]
[1761069905698,5.95326147,4026.8,4025.2,2.48429737]
[1761069905900,5.95326147,4026.8,4025.1,0.2203]
[1761069906603,5.95326147,4026.8,4025.8,2.48392893]
[1761069906915,5.95326147,4026.8,4025.3,0.4723]
[1761069906916,3.4699,4026.8,4026.0,2.48380442]
[1761069907069,3.4699,4026.8,4025.1,0.2203]
[1761069907070,3.249,4026.8,4026.1,0.2203]
[1761069907270,3.249,4026.8,4026.1,2.7040812]
[1761069907814,5.95326147,4026.8,4025.7,0.4723]
[1761069907969,5.95326147,4026.8,4025.9,2.48386394]
[1761069908171,5.95326147,4026.8,4026.0,2.48383322]
[1761069908713,3.249,4026.8,4026.2,2.70402502]
[1761069908864,5.95326147,4026.8,4025.2,0.4723]
[1761069909068,5.95326147,4026.8,4025.7,2.48402571]
[1761069909265,5.95326147,4026.8,4025.2,0.4723]
[1761069909497,5.95326147,4026.8,4025.4,2.48421413]
[1761069909701,5.95326147,4026.8,4025.1,0.2203]
[1761069909906,5.95326147,4026.8,4025.2,4.03953982]
[1761069910076,5.95326147,4026.8,4025.3,2.48425952]
[1761069910270,5.95326147,4026.8,4025.1,0.2203]
[1761069910271,5.95326147,4026.8,4025.2,1.5552]
[1761069910893,5.95326147,4026.8,4025.3,2.4842464]
[1761069911101,12.26268147,4026.8,4024.7,0.2203]
[1761069911406,8.01534147,4026.8,4025.1,2.48436203]
[1761069911566,8.01634147,4026.8,4025.1,0.2203]
[1761069911769,7.50946147,4026.8,4025.3,2.60823297]
[1761069912096,7.50946147,4026.8,4025.3,0.124]
[1761069912611,7.50946147,4026.8,4025.3,2.60827134]
[1761069913023,8.01634147,4026.8,4025.3,0.124]
[1761069913192,8.01634147,4026.8,4024.9,0.124]
[1761069913193,20.08144547,4026.8,4024.9,0.124]
[1761069913393,14.15069347,4026.8,4024.9,0.124]
[1761069913775,14.15069347,4026.8,4024.5,0.4723]
[1761069913976,15.35472247,4026.8,4024.7,0.3443]
[1761069914273,8.01634147,4026.8,4025.2,2.70464474]
[1761069914484,1.5552,4026.8,4026.1,0.2203]
[1761069914682,7.28856147,4026.8,4026.1,0.2203]
[1761069915322,4.8052,4026.8,4026.1,0.2203]
[1761069915529,3.25,4026.8,4025.6,0.5963]
[1761069915827,3.25,4026.8,4026.2,2.48372073]
[1761069915982,3.25,4026.8,4026.1,2.7040376]
[1761069916187,5.73336147,4026.8,4026.1,0.2203]
[1761069916513,3.4709,4026.8,4025.9,0.124]
[1761069916813,5.95426147,4026.8,4025.4,2.48418324]
[1761069917114,6.46114147,4026.8,4025.3,0.124]
[1761069917312,6.46114147,4026.8,4025.4,2.48417248]
[1761069917544,8.01634147,4026.8,4024.7,2.70494988]
[1761069917827,4.25946147,4026.8,4025.4,0.2203]
[1761069918142,4.25946147,4026.8,4025.7,2.48401489]
[1761069918143,7.50946147,4026.8,4025.7,2.48401489]
[1761069918296,7.50946147,4026.8,4025.4,0.2203]
[1761069918687,7.50946147,4026.8,4025.6,2.48409728]
[1761069918932,7.50946147,4026.8,4025.7,2.48403497]
[1761069919515,7.50946147,4026.8,4026.6,0.002]
[1761069921135,3.4709,4026.8,4026.6,0.002]
[1761069921289,3.251,4026.8,4026.6,0.002]
[1761069921496,0.001,4026.9,4026.6,0.002]
[1761069921497,0.001,4026.9,4026.8,2.48336147]
[1761069921839,0.001,4026.9,4026.8,3.02535562]
[1761069922036,0.001,4026.9,4026.8,3.47445562]
[1761069922323,0.001,4026.9,4026.8,2.93246147]
[1761069924326,0.001,4026.9,4026.8,2.48336147]
[1761069924624,0.001,4026.9,4026.7,0.002]
[1761069924828,0.001,4026.9,4026.8,2.48336147]
[1761069925030,0.2251,4026.9,4026.7,0.002]
[1761069925541,2.70840752,4026.9,4026.7,0.002]
[1761069925830,2.48336147,4026.8,4026.7,0.002]
[1761069925997,0.001,4026.9,4026.7,0.002]
[1761069926202,0.2251,4026.9,4026.7,0.002]
[1761069926725,2.48336147,4026.8,4026.7,0.002]
[1761069927133,0.2241,4026.8,4026.7,0.002]
[1761069927297,0.001,4026.9,4026.7,0.002]
[1761069928108,0.125,4026.9,4026.7,0.002]
[1761069928337,0.001,4026.9,4026.7,0.002]
[1761069929031,0.001,4026.9,4026.7,2.48540572]
[1761069929233,0.001,4026.9,4026.7,0.002]
[1761069930030,0.125,4026.9,4026.8,2.48336147]
[1761069930199,0.001,4026.9,4026.8,2.48336147]
[1761069930633,0.001,4026.9,4026.8,2.91426147]
[1761069931097,0.001,4026.9,4026.8,2.48336147]
[1761069931944,0.001,4026.9,4026.7,0.002]
[1761069932545,0.001,4026.9,4026.7,2.48540566]
[1761069933045,0.2241,4026.8,4026.7,0.002]
[1761069933245,0.125,4026.9,4026.7,0.002]
[1761069933862,0.125,4026.9,4026.7,2.485376]
[1761069934142,0.125,4026.9,4026.7,0.002]
[1761069936140,0.125,4026.9,4026.7,2.48540431]
[1761069936547,0.125,4026.9,4026.8,2.48336147]
[1761069937635,0.001,4026.9,4026.8,2.48336147]
[1761069938048,0.001,4026.9,4026.8,2.91426147]
[1761069938267,0.001,4026.9,4026.8,3.45443494]
[1761069938559,0.001,4026.9,4026.8,3.57843494]
[1761069938854,0.001,4026.9,4026.8,0.124]
[1761069939148,0.2251,4026.9,4026.7,0.002]
[1761069939525,0.001,4026.9,4026.7,0.002]
[1761069939751,0.001,4026.9,4026.7,2.48541816]
[1761069939916,0.2251,4026.9,4026.7,0.002]
[1761069940755,2.70842173,4026.9,4026.7,0.002]
[1761069941055,2.48336147,4026.8,4026.7,0.002]
[1761069941347,2.70746147,4026.8,4026.7,0.002]
[1761069942053,0.124,4026.8,4026.7,0.002]
[1761069944153,0.001,4026.9,4026.8,2.48336147]
[1761069944648,0.001,4026.9,4026.8,2.91426147]
[1761069945632,0.001,4026.9,4026.8,2.48336147]
[1761069946349,0.001,4026.9,4026.8,2.91426147]
[1761069946563,0.001,4026.9,4026.8,2.48336147]
[1761069946742,0.001,4026.9,4026.8,2.91426147]
[1761069947667,0.001,4026.9,4026.7,0.126]
[1761069947831,0.001,4026.9,4026.8,2.48336147]
[1761069948560,0.001,4026.9,4026.8,2.91426147]
[1761069949273,0.001,4026.9,4026.8,3.4999282]
[1761069950563,0.001,4026.9,4026.8,2.48336147]
[1761069951766,0.2251,4026.9,4026.7,0.002]
[1761069952638,0.001,4026.9,4026.7,0.002]
[1761069953171,0.2241,4026.8,4026.7,0.002]
[1761069954386,2.70746147,4026.8,4026.7,0.002]
[1761069954540,0.2241,4026.8,4026.7,0.002]
[1761069954734,3.24366818,4026.8,4026.7,0.002]
[1761069954933,3.75054818,4026.8,4026.7,0.002]
[1761069955162,3.75059618,4026.8,4026.7,0.002]
[1761069959254,3.70059618,4026.8,4026.7,0.002]
[1761069960301,18.11700218,4026.8,4026.7,0.002]
[1761069960500,8.72637618,4026.8,4026.7,0.002]
[1761069960800,6.14873297,4026.8,4026.7,0.002]
[1761069960978,5.25579618,4026.8,4026.7,0.002]
[1761069961179,5.64474943,4026.8,4026.7,0.002]
[1761069961357,6.53768622,4026.8,4026.7,0.002]
[1761069961557,5.64474943,4026.8,4026.7,0.002]
[1761069962191,6.53768622,4026.8,4026.7,0.002]
[1761069962359,10.29497722,4026.8,4026.7,0.002]
[1761069962696,5.64474943,4026.8,4026.7,0.002]
[1761069962863,5.64524943,4026.8,4026.7,0.002]
[1761069963278,6.31441139,4026.8,4026.7,0.002]
[1761069964272,5.64524943,4026.8,4026.7,0.002]
[1761069964468,4.96376943,4026.8,4026.7,0.002]
[1761069964788,5.51354951,4026.8,4026.7,0.002]
[1761069964990,7.82231098,4026.8,4026.7,0.002]
[1761069966402,7.99691098,4026.8,4026.7,0.002]
[1761069969095,8.50379098,4026.8,4026.7,0.002]
[1761069971197,14.76435194,4026.8,4026.7,0.002]
[1761069971402,14.76435194,4026.8,4026.6,0.002]
[1761069971403,4.54550315,4026.7,4026.6,1e-08]
[1761069971574,19.75218666,4026.7,4026.6,1e-08]
[1761069972273,19.27417066,4026.7,4026.6,1e-08]
[1761069972480,2.897544,4024.9,4023.5,0.232]
[1761069972710,0.50688,4024.7,4023.5,0.232]
[1761069972899,0.50688,4024.4,4022.7,0.6648]
[1761069973100,2.48522672,4023.8,4023.1,0.232]
[1761069973301,3.248,4023.7,4023.1,0.232]
[1761069973679,3.248,4023.7,4022.8,0.4298]
[1761069973889,3.6266,4023.7,4022.7,0.235]
[1761069974086,3.6266,4023.7,4022.7,0.6648]
[1761069974292,0.50688,4023.6,4022.7,0.6648]
[1761069974524,2.99223098,4023.6,4022.8,2.48581642]
[1761069974820,2.99223098,4023.6,4022.8,2.91561642]
[1761069975128,2.99223098,4023.6,4022.7,0.235]
[1761069975129,2.48555911,4023.3,4022.7,0.235]
[1761069975320,3.248,4023.2,4022.7,0.235]
[1761069975522,5.73359826,4023.2,4022.7,0.235]
[1761069975827,3.248,4023.2,4022.7,0.235]
[1761069975999,2.48569755,4023.1,4022.7,0.235]
[1761069976401,3.248,4023.2,4022.3,2.91588489]
[1761069976725,5.73358702,4023.2,4022.4,2.48607794]
[1761069977232,3.248,4023.2,4022.5,2.48600913]
[1761069977393,3.248,4023.2,4022.5,2.48599416]
[1761069977596,2.48565542,4023.1,4022.0,0.6648]
[1761069977820,2.48565542,4023.1,4022.0,2.22]
[1761069977987,2.48565542,4023.1,4022.1,2.48626339]
[1761069978321,3.248,4023.2,4022.1,0.4298]
[1761069978521,3.248,4023.2,4023.1,0.232]
[1761069978721,3.248,4023.2,4023.1,0.6921]
[1761069978722,3.249,4023.2,4023.1,0.6921]
[1761069978896,3.249,4023.2,4023.1,0.232]
[1761069979098,3.249,4023.2,4023.1,2.71764539]
[1761069979323,3.249,4023.2,4023.1,3.17774539]
[1761069979717,3.249,4023.2,4023.1,0.6921]
[1761069979906,3.249,4023.2,4023.1,3.17774539]
[1761069980811,3.249,4023.2,4023.1,3.790368]
[1761069982644,8.019,4025.1,4023.1,24.09797546]
[1761069982645,3.25,4023.7,4023.1,24.09797546]
[1761069982822,3.25,4023.7,4023.6,2.48527945]
[1761069983336,3.25,4023.7,4023.6,2.94543651]
[1761069983839,3.25,4023.7,4023.5,0.124]
[1761069984043,3.25,4023.7,4023.1,0.232]
[1761069984240,5.85927674,4023.7,4023.1,0.356]
[1761069984431,5.85927674,4023.7,4022.6,0.4344]
[1761069984432,3.604,4023.7,4022.6,0.4344]
[1761069984627,0.124,4023.2,4022.6,0.4344]
[1761069984844,3.25,4023.1,4022.6,0.4344]
[1761069985013,3.25,4023.1,4023.0,2.48570718]
[1761069985345,3.25,4023.5,4023.4,2.48546005]
[1761069985924,3.25,4023.5,4023.4,2.91986005]
[1761069988447,3.25,4023.5,4023.4,3.04386005]
[1761069989864,3.25,4023.5,4023.4,2.60946005]
[1761069990048,3.25,4023.5,4023.4,3.04386005]
[1761069990244,3.25,4023.5,4023.4,0.124]
[1761069990466,3.25,4023.5,4023.4,2.48546005]
[1761069990663,3.24831826,4023.5,4023.4,2.48546005]
[1761069991277,3.24831826,4023.5,4023.2,2.6095257]
[1761069991441,3.24831826,4023.5,4023.2,3.0439257]
[1761069991639,3.24831826,4023.5,4023.0,0.002]
[1761069991961,2.48564539,4023.1,4023.0,0.002]
[1761069992143,2.48560237,4023.2,4023.0,0.002]
[1761069992478,2.48564539,4023.1,4023.0,0.002]
[1761069992769,0.3495,4023.1,4023.0,0.002]
[1761069993471,0.124,4023.3,4023.0,0.002]
[1761069994171,0.124,4023.3,4023.0,2.48768957]
[1761069994472,0.124,4023.3,4023.2,0.232]
[1761069994675,3.24831826,4023.5,4023.4,2.48546005]
[1761069994971,3.24831826,4023.5,4023.4,3.48360442]
[1761069995474,3.24831826,4023.5,4023.4,2.91986005]
[1761069996374,3.24831826,4023.5,4023.4,0.4344]
[1761069996569,3.24831826,4023.5,4023.4,2.91986005]
[1761069996772,3.24831826,4023.5,4023.2,0.356]
[1761069996942,3.24831826,4023.5,4023.2,0.7904]
[1761069997138,3.24831826,4023.5,4023.2,0.232]
[1761069997353,3.24831826,4023.5,4023.4,2.48546005]
[1761069997867,3.24831826,4023.5,4023.2,0.124]
[1761069998854,3.24831826,4023.5,4023.2,2.60958308]
[1761069999089,3.24831826,4023.5,4023.3,2.48551139]
[1761069999298,3.24831826,4023.5,4023.3,2.91991139]
[1761069999795,3.24831826,4023.5,4023.4,2.91986005]
[1761070000493,3.24831826,4023.5,4023.4,2.48546005]
[1761070000794,3.24831826,4023.5,4023.4,3.04386005]
[1761070000944,3.24831826,4023.5,4023.4,3.62000101]
[1761070002076,3.24831826,4023.5,4023.4,2.60946005]
[1761070002480,3.24831826,4023.5,4023.1,0.232]
[1761070002685,3.24831826,4023.5,4023.4,2.48546005]
[1761070003778,3.24831826,4023.5,4023.4,2.91986005]
[1761070004578,3.24831826,4023.5,4023.4,2.48546005]
[1761070004802,3.24831826,4023.5,4023.4,2.91986005]
[1761070006180,3.24831826,4023.5,4023.4,2.48546005]
[1761070007117,3.24831826,4023.5,4023.3,2.48550969]
[1761070007421,3.24831826,4023.5,4023.2,0.124]
[1761070007915,3.24831826,4023.5,4023.3,2.91988005]
[1761070008344,3.24831826,4023.5,4023.2,0.124]
[1761070008496,3.24831826,4023.5,4023.0,0.002]
[1761070008816,3.24831826,4023.5,4023.3,2.48551896]
[1761070009023,3.24831826,4023.5,4023.3,2.48551556]
[1761070009226,3.24831826,4023.5,4023.3,2.48751556]
[1761070009391,3.24931826,4023.5,4023.3,0.002]
[1761070011812,3.24931826,4023.5,4023.4,2.91986005]
[1761070012914,3.24931826,4023.5,4023.4,3.04386005]
[1761070013331,3.24931826,4023.5,4023.4,2.60946005]
[1761070014239,3.24931826,4023.5,4023.4,3.05226005]
[1761070014444,3.24931826,4023.5,4023.4,0.124]
[1761070014948,3.24931826,4023.5,4023.3,0.002]
[1761070016212,3.24931826,4023.5,4023.3,2.48751813]
[1761070016516,3.24931826,4023.5,4023.4,2.48546005]
[1761070016917,3.24931826,4023.5,4023.4,2.92826005]
[1761070017543,3.24931826,4023.5,4023.4,2.48546005]
[1761070020550,3.24931826,4023.5,4023.4,2.92826005]
[1761070020734,3.24931826,4023.5,4023.4,2.48546005]
[1761070021627,0.001,4023.5,4023.4,2.92826005]
[1761070021968,3.249,4023.5,4023.4,3.61642425]
[1761070022128,0.001,4023.5,4023.4,3.61642425]
[1761070022873,0.001,4023.5,4023.4,25.86569229]
[1761070023182,4.03942965,4025.4,4023.4,25.86569229]
[1761070023183,0.66757342,4025.8,4023.5,2.06208]
[1761070023375,3.90808657,4025.7,4024.6,22.22441344]
[1761070023538,0.53608657,4025.6,4025.2,2.48434635]
[1761070023726,0.77929219,4025.6,4024.5,2.48475648]
[1761070024058,0.77929219,4025.6,4023.3,2.99439624]
[1761070024059,0.2331,4024.6,4023.7,1.5552]
[1761070024260,3.248,4024.5,4023.9,0.124]
[1761070024569,3.248,4024.5,4024.2,2.48490919]
[1761070024934,3.248,4024.5,4024.1,2.48501536]
[1761070025130,3.248,4024.5,4023.9,0.124]
[1761070025660,0.4763,4024.4,4023.9,0.124]
[1761070025965,0.4763,4024.4,4023.4,2.48540356]
[1761070025966,2.96116018,4024.4,4023.4,2.48545808]
[1761070026168,0.77930739,4024.3,4023.3,0.002]
[1761070026467,0.124,4023.8,4023.3,0.002]
[1761070026668,0.1834,4023.4,4023.3,0.002]
[1761070027033,0.4279,4023.4,4023.3,0.002]
[1761070027531,2.91336005,4023.4,4023.3,0.002]
[1761070028368,0.1834,4023.4,4023.3,0.002]
[1761070028551,0.001,4023.5,4023.3,0.002]
[1761070028952,0.2449,4023.5,4023.3,0.002]
[1761070029137,2.73032108,4023.5,4023.3,0.002]
[1761070029342,2.48642108,4023.5,4023.3,0.002]
[1761070029542,0.2439,4023.4,4023.3,0.002]
[1761070030079,2.72936005,4023.4,4023.3,0.002]
[1761070030230,0.2439,4023.4,4023.3,0.002]
[1761070030644,2.72936005,4023.4,4023.3,0.002]
[1761070031045,0.2439,4023.4,4023.3,0.002]
[1761070031954,2.72936005,4023.4,4023.3,0.002]
[1761070032332,0.2439,4023.4,4023.3,0.002]
[1761070033470,0.001,4023.5,4023.3,0.002]
[1761070033646,3.248,4023.4,4023.3,0.002]
[1761070034033,0.001,4023.5,4023.3,0.002]
[1761070034235,3.247,4023.4,4023.3,0.002]
[1761070034832,3.4903,4023.4,4023.3,0.002]
[1761070035037,5.97576005,4023.4,4023.3,0.002]
[1761070035304,3.4903,4023.4,4023.3,0.002]
[1761070035652,5.97576005,4023.4,4023.3,0.002]
[1761070035848,3.4903,4023.4,4023.3,0.002]
[1761070036391,3.247,4023.4,4023.3,0.002]
[1761070036593,3.4903,4023.4,4023.3,0.002]
[1761070038378,5.97576005,4023.4,4023.3,0.002]
[1761070038872,3.4903,4023.4,4023.3,0.002]
[1761070039168,5.97576005,4023.4,4023.3,0.002]
[1761070039563,3.247,4023.4,4023.3,0.002]
[1761070040551,3.4903,4023.4,4023.3,0.002]
[1761070041087,5.97576005,4023.4,4023.3,0.002]
[1761070041268,3.4903,4023.4,4023.3,0.002]
[1761070041701,5.97576005,4023.4,4023.3,0.002]
[1761070044620,6.48264005,4023.4,4023.3,0.002]
[1761070044915,7.01821664,4023.4,4023.3,0.002]
[1761070045812,3.247,4023.4,4023.3,0.002]
[1761070046200,5.73246005,4023.4,4023.3,0.002]
[1761070046404,3.247,4023.4,4023.3,0.002]
[1761070046803,5.73246005,4023.4,4023.3,0.002]
[1761070047184,5.97576005,4023.4,4023.3,0.002]
[1761070047713,6.48264005,4023.4,4023.3,0.002]
[1761070047883,22.02953031,4023.4,4023.3,0.002]
[1761070048079,17.22969231,4023.4,4023.3,0.002]
[1761070048396,16.91245369,4023.4,4023.3,0.002]
[1761070048581,16.02073876,4023.4,4023.3,0.002]
[1761070049126,21.52588076,4023.4,4023.3,0.002]